fUSD/lending_fUSD_20240328
["ID","MTS","AMOUNT","RATE_DAILY","PERIOD"]
[320872402,1711655443013,-500.0,0.00049315,120]
[320872403,1711655443023,-500.0,0.00049315,120]
[320872404,1711655443032,-500.0,0.00049315,120]
[320872405,1711655443042,-500.0,0.00049315,2]
[320872406,1711655443054,-1239.18,0.00049315,120]
[320872407,1711655443063,-729.01,0.00049315,120]
[320872408,1711655443072,-779.96,0.00049315,120]
[320872409,1711655443081,-535.34,0.00049315,120]
[320872410,1711655443091,-1097.88,0.00049315,120]
[320872411,1711655443101,-535.34,0.00049315,120]
[320872412,1711655443110,-535.34,0.00049315,120]
[320872413,1711655443121,-535.34,0.00049315,120]
[320872414,1711655443130,-2758.23,0.00049315,120]
[320872415,1711655443139,-500.0,0.00049315,120]
[320872416,1711655443148,-1785.12,0.00049315,120]
[320872417,1711655443158,-500.0,0.00049315,120]
[320872418,1711655443167,-500.0,0.00049315,120]
[320872419,1711655443176,-2215.51,0.00049315,120]
[320872420,1711655443185,-632.31,0.00049315,120]
[320872421,1711655443194,-500.0,0.00049315,120]
[320872422,1711655443204,-894.63,0.00049315,120]
[320872423,1711655443213,-891.89,0.00049315,120]
[320872424,1711655443222,-1511.91,0.00049315,120]
[320872425,1711655443231,-232.96070094,0.00049315,120]
[320872426,1711655443240,-1220.45,0.00049315,120]
[320872427,1711655443249,-1750.86,0.00049315,120]
[320872428,1711655443258,-500.0,0.00049315,120]
[320872429,1711655443267,-3039.58,0.00049315,120]
[320872430,1711655443276,-1601.2,0.00049315,21]
[320872431,1711655443285,-1296.01,0.00049315,120]
[320872432,1711655443295,-500.0,0.00049315,120]
[320872433,1711655443304,-606.5,0.00049315,120]
[320872434,1711655443313,-1623.13,0.00049315,120]
[320872435,1711655443322,-500.0,0.00049315,120]
[320872436,1711655443331,-1309.64,0.00049315,120]
[320872437,1711655443340,-500.0,0.00049315,120]
[320872438,1711655443350,-1933.52,0.00049315,120]
[320872439,1711655443359,-4485.09,0.00049315,120]
[320872440,1711655443368,-1436.3,0.00049315,120]
[320872441,1711655443377,-1323.29,0.00049315,120]
[320872442,1711655443386,-1062.36,0.00049315,120]
[320872443,1711655443396,-2070.81,0.00049315,120]
[320872444,1711655443406,-1090.69,0.00049315,120]
[320872445,1711655443415,-500.0,0.00049315,120]
[320872446,1711655443425,-174.70592207,0.00049315,120]
[320872447,1711655443434,-808.0,0.00049315,120]
[320872448,1711655443443,-500.0,0.00049315,120]
[320872449,1711655443453,-500.0,0.00049315,120]
[320872450,1711655443462,-531.7,0.00049315,120]
[320872451,1711655443472,-500.0,0.00049315,120]
[320872452,1711655443481,-990.23,0.00049315,120]
[320872453,1711655443490,-500.0,0.00049315,120]
[320872454,1711655443500,-500.0,0.00049315,120]
[320872456,1711655443509,-899.39,0.00049315,120]
[320872458,1711655443518,-615.26,0.00049315,120]
[320872460,1711655443527,-970.93,0.00049315,120]
[320872474,1711655443739,-927.09,0.00049315,120]
[320872477,1711655443748,-500.0,0.00049315,120]
[320872479,1711655443757,-500.0,0.00049315,120]
[320872481,1711655443767,-1045.38,0.00049315,120]
[320872483,1711655443776,-500.0,0.00049315,60]
[320872485,1711655443785,-751.34,0.00049315,120]
[320872487,1711655443794,-500.0,0.00049315,120]
[320872489,1711655443803,-500.0,0.00049315,120]
[320872491,1711655443813,-958.18,0.00049315,120]
[320872493,1711655443822,-500.0,0.00049315,120]
[320872495,1711655443832,-500.0,0.00049315,120]
[320872497,1711655443841,-1177.54,0.00049315,120]
[320872499,1711655443851,-3225.56,0.00049315,120]
[320872501,1711655443861,-500.0,0.00049315,120]
[320872503,1711655443870,-500.0,0.00049315,120]
[320872505,1711655443879,-1177.46,0.00049315,120]
[320872507,1711655443888,-2189.43,0.00049315,120]
[320872509,1711655443898,-686.45,0.00049315,120]
[320872511,1711655443907,-1502.57,0.00049315,120]
[320872513,1711655443916,-569.71,0.00049315,120]
[320872515,1711655443926,-500.0,0.00049315,120]
[320872517,1711655443935,-500.0,0.00049315,2]
[320872519,1711655443944,-1126.64,0.00049315,120]
[320872521,1711655443953,-1065.66,0.00049315,120]
[320872523,1711655443963,-131.81159467,0.00049315,120]
[320872597,1711655444635,-575.0,0.00048329,2]
[320872620,1711655445084,223.94252704,0.00024,2]
[320873181,1711656632242,-163.74412768,0.00028588,2]
[320873182,1711656632251,-986.25587232,0.00028675,2]
[320873183,1711656632285,-299.02099233,0.00028675,2]
[320873184,1711656632297,-600.79017629,0.00028675,2]
[320873185,1711656632306,-2991.44232481,0.00028676,2]
[320873186,1711656632341,-661.68277074,0.00028676,2]
[320873187,1711656632353,-647.50787076,0.00028676,2]
[320873188,1711656632362,-102.49212924,0.00028688,2]
[320873189,1711656632453,-52.50787076,0.00028688,2]
[320873190,1711656632463,-35688.7453427,0.00028688,2]
[320873191,1711656632472,-13180.67595606,0.0002998,2]
[320873192,1711656632481,-21129.00147526,0.0003,2]
[320873193,1711656632490,-163.74412765,0.00032992,2]
[320873194,1711656632500,-3900.0,0.00035,7]
[320873195,1711656632509,-3124.76822924,0.000356,2]
[320873196,1711656632519,-499.99,0.000356,2]
[320873197,1711656632528,-481.96,0.00037123,2]
[320873198,1711656632537,-163.74412765,0.00037396,2]
[320873199,1711656632546,-7752.92,0.00038834,2]
[320873200,1711656632555,-23900.0,0.00038924,2]
[320873201,1711656632564,-1331.14,0.00038932,2]
[320873202,1711656632573,-500.0,0.0003898,2]
[320873203,1711656632582,-18092.82652741,0.00039,3]
[320873204,1711656632591,-310.04,0.00039118,2]
[320873205,1711656632600,-18847.74,0.00039196,2]
[320873206,1711656632609,-600.0,0.00039201,2]
[320873207,1711656632619,-151.68,0.00039276,15]
[320873208,1711656632627,-15230.7870721,0.00039287,2]
[320873209,1711656632636,-14172.9,0.00039353,2]
[320873210,1711656632645,-481.96,0.00039386,2]
[320873211,1711656632654,-250.0,0.00039436,2]
[320873212,1711656632663,-150.0,0.00039537,2]
[320873213,1711656632673,-250.0,0.0003959,112]
[320873214,1711656632682,-7442.28198924,0.00040667,2]
[320873215,1711656632691,-157.34103917,0.00040717,10]
[320873216,1711656632699,-1118.0346485,0.00040717,14]
[320873217,1711656632708,-417.8900481,0.00040717,2]
[320873218,1711656632718,-150.5,0.00040737,15]
[320873219,1711656632727,-150.5,0.00040737,15]
[320873220,1711656632737,-400.0,0.0004074,2]
[320873221,1711656632746,-150.5,0.00040747,15]
[320873222,1711656632754,-262.0,0.00040747,15]
[320873223,1711656632764,-150.5,0.00040747,15]
[320873224,1711656632773,-150.5,0.00040757,15]
[320873225,1711656632782,-150.5,0.00040757,15]
[320873226,1711656632791,-150.5,0.00040757,15]
[320873227,1711656632800,-4412.60808939,0.00040765,2]
[320873228,1711656632811,-5301.693,0.00040765,30]
[320873229,1711656632821,-273.21973703,0.00040767,2]
[320873230,1711656632831,-17955.61332526,0.00040767,30]
[320873235,1711656638394,-727.3743122,0.00040767,30]
[320873236,1711656638409,-4301.20260756,0.00040767,30]
[320873237,1711656638500,-273.86980819,0.00040767,30]
[320873238,1711656638513,-42501.07743884,0.00040767,30]
[320873419,1711656640203,-613.4098626,0.00040767,30]
[320873422,1711656640215,-2480.404,0.00040767,30]
[320873424,1711656640227,-1559.26,0.00040767,30]
[320873432,1711656640263,-3814.2932083,0.00040767,30]
[320873484,1711656640802,-1499.99229274,0.00040767,30]
[320873600,1711656643271,-2282.1019,0.00040767,30]
[320873601,1711656643594,-1150.28584995,0.00040767,30]
[320873602,1711656643708,-17340.28466694,0.00040767,30]
[320873603,1711656643764,-6841.70727939,0.00040767,30]
[320873605,1711656646444,-373.5068174,0.00040766,2]
[320873722,1711657832477,-1886.06704094,0.00028473,2]
[320873723,1711657832487,-155.0,0.00028473,2]
[320873724,1711657832497,-1500.275006,0.00028474,2]
[320873725,1711657832506,-163.74412765,0.00028476,2]
[320873726,1711657832516,-350.0,0.00029,3]
[320873727,1711657832527,-440.12783223,0.000295,3]
[320873728,1711657832536,-200.50034699,0.0003,15]
[320873729,1711657832547,-2528.80406101,0.00030575,4]
[320873730,1711657832557,-400.0,0.00031,3]
[320873731,1711657832568,-450.0,0.00033,3]
[320873732,1711657832578,-500.0,0.00035,3]
[320873733,1711657832588,-499.99,0.00035,2]
[320873734,1711657832598,-433.76,0.00036629,2]
[320873735,1711657832608,-550.0,0.00037,3]
[320873736,1711657832617,-155.02,0.00038511,2]
[320873737,1711657832626,-694.84849681,0.00038697,2]
[320873738,1711657832653,-4473.09150319,0.00038697,2]
[320873739,1711657832664,-20203.03222332,0.00038726,2]
[320873744,1711657838578,-3696.96777668,0.00038726,2]
[320873745,1711657838587,-151.68,0.0003876,15]
[320873746,1711657838596,-250.0,0.00038829,112]
[320873747,1711657838604,-1109.28,0.00038864,2]
[320873748,1711657838613,-433.76,0.00038893,2]
[320873749,1711657838621,-644.85,0.00039271,2]
[320873750,1711657838630,-1000.0,0.00039346,2]
[320873751,1711657838639,-200.0,0.000404,14]
[320873752,1711657838648,-500.0,0.000405,14]
[320873753,1711657838657,-800.0,0.000406,14]
[320873754,1711657838666,-171.86475117,0.00040666,120]
[320873755,1711657838676,-13707.70836489,0.00040666,2]
[320873756,1711657838687,-6698.05379028,0.00040666,2]
[320873757,1711657838698,-1907.36763052,0.00040666,32]
[320873758,1711657838711,-422.13356714,0.00040666,2]
[320873759,1711657838721,-1532.43920516,0.00040666,2]
[320873760,1711657838733,-4116.92143522,0.00040666,2]
[320873761,1711657838743,-204.76482715,0.00040666,2]
[320873763,1711657838752,-160.3639009,0.000407,14]
[320873765,1711657838761,-1100.0,0.000407,14]
[320873767,1711657838771,-150.5,0.00040736,15]
[320873769,1711657838781,-168.0,0.00040736,15]
[320873771,1711657838791,-150.5,0.00040736,15]
[320873773,1711657838800,-150.5,0.00040746,15]
[320873776,1711657838810,-168.0,0.00040746,15]
[320873779,1711657838820,-150.5,0.00040746,15]
[320873781,1711657838830,-150.5,0.00040756,15]
[320873783,1711657838839,-168.0,0.00040756,15]
[320873785,1711657838848,-150.5,0.00040756,15]
[320873787,1711657838857,-192.94649433,0.00040756,2]
[320873789,1711657838866,-387.42177734,0.00040764,4]
[320873791,1711657838876,-548.73636979,0.00040765,4]
[320873793,1711657838885,-445.45527983,0.00040765,4]
[320873795,1711657838895,-1236.69244334,0.00040765,4]
[320873797,1711657838904,-343.19395664,0.00040765,4]
[320873799,1711657838913,-1234.53371005,0.00040765,4]
[320873801,1711657838923,-236.18168364,0.00040765,2]
[320873803,1711657838931,-207.52816585,0.00040765,4]
[320873804,1711657838940,-1910.75295443,0.00040765,4]
[320873806,1711657838949,-174.915476,0.00040765,4]
[320873808,1711657838959,-21653.06986637,0.00040766,4]
[320873810,1711657838968,-863.11991372,0.00040766,4]
[320873812,1711657838978,-1500.0,0.00040766,2]
[320873814,1711657838987,-1509872.6913429,0.00040766,4]
[320873817,1711657839000,-425029.62397677,0.00040766,4]
[320873819,1711657839016,-1107.2408442,0.00040766,4]
[320873967,1711657840727,-3138.10846979,0.00040766,4]
[320874228,1711657843406,-2564650.13319185,0.00040766,4]
[320874231,1711657843415,-150.0,0.00040766,2]
[320874234,1711657843424,-3373.70527389,0.00040766,2]
[320874237,1711657843433,-179.46397439,0.00040766,4]
[320874239,1711657843443,-327.95107238,0.00040766,4]
[320874242,1711657843452,-410.59947216,0.00040766,4]
[320874244,1711657843461,-186.45093788,0.00040766,4]
[320874247,1711657843470,-195.43126315,0.00040766,2]
[320874250,1711657843479,-300.0,0.00040767,2]
[320874252,1711657843489,-300.0,0.00040767,2]
[320874255,1711657843499,-300.0,0.00040767,2]
[320874257,1711657843508,-300.0,0.00040767,2]
[320874258,1711657843517,-300.0,0.00040767,2]
[320874259,1711657843525,-300.0,0.00040767,2]
[320874260,1711657843535,-300.0,0.00040767,2]
[320874261,1711657843544,-300.0,0.00040767,2]
[320874262,1711657843553,-242.83076,0.00040767,6]
[320874263,1711657843562,-1788365.0668663,0.00040767,30]
[320874264,1711657843571,-640.32,0.000408,7]
[320874265,1711657843580,-245.75,0.000408,7]
[320874266,1711657843589,-216.22,0.000408,7]
[320874267,1711657843598,-1400.0,0.000408,14]
[320874268,1711657843607,-200.0,0.000409,14]
[320874269,1711657843616,-172.62,0.00040984,2]
[320874270,1711657843625,-1500.0,0.00041096,120]
[320874271,1711657843633,-433.76,0.00041157,2]
[320874272,1711657843643,-5167.94,0.00041437,2]
[320874273,1711657843651,-150.0,0.00041766,60]
[320874274,1711657843660,-8750.80747398,0.00042,2]
[320874275,1711657843671,-9084.69219262,0.00042,2]
[320874277,1711657843681,-6698.05379025,0.00042003,2]
[320874279,1711657843690,-13707.70836485,0.00042012,2]
[320874280,1711657843700,-640.32,0.000428,7]
[320874281,1711657843714,-1907.36763049,0.00043077,36]
[320874282,1711657843725,-245.75,0.000431,7]
[320874283,1711657843734,-216.22,0.000431,7]
[320874284,1711657843744,-6698.05379025,0.0004334,2]
[320874285,1711657843755,-13707.70836485,0.00043357,2]
[320874286,1711657843765,-433.76,0.0004342,2]
[320874287,1711657843776,-150.0,0.00043917,7]
[320874288,1711657843786,-150.0,0.00043917,7]
[320874289,1711657843796,-161.70523563,0.00043917,7]
[320874290,1711657843805,-5167.94,0.00044176,2]
[320874291,1711657843816,-1000.0,0.00044264,2]
[320874292,1711657843827,-6698.05379025,0.00044677,2]
[320874293,1711657843838,-13707.70836485,0.00044703,2]
[320874294,1711657843847,-1907.36763049,0.00045488,40]
[320874295,1711657843857,-151.68,0.00045609,15]
[320874296,1711657843869,-433.76,0.00045684,2]
[320874297,1711657843878,-242.83076,0.00045767,6]
[320874298,1711657843887,-6698.05379025,0.00046014,2]
[320874299,1711657843897,-13707.70836485,0.00046048,2]
[320874300,1711657843907,-500.0,0.00046133,30]
[320874301,1711657843918,-500.0,0.00046133,30]
[320874302,1711657843928,-1532.43920514,0.00046283,2]
[320874303,1711657843937,-422.13356713,0.00046283,2]
[320874305,1711657843946,-4116.92143521,0.00046283,2]
[320874307,1711657843955,-245.75,0.000464,7]
[320874309,1711657843965,-216.22,0.000464,7]
[320874311,1711657843974,-3364.80293691,0.00046434,2]
[320874313,1711657843984,-160.3639009,0.000465,22]
[320874314,1711657843994,-640.32,0.000465,7]
[320874315,1711657844005,-187.0,0.000466,2]
[320874316,1711657844014,-281.0,0.000468,2]
[320874317,1711657844023,-6698.05379025,0.00047352,2]
[320874318,1711657844032,-13707.70836485,0.00047394,2]
[320874319,1711657844041,-172.62,0.00047749,2]
[320874320,1711657844051,-1907.36763049,0.00047899,43]
[320874321,1711657844060,-154.98728367,0.00047937,30]
[320874322,1711657844070,-433.76,0.00047948,2]
[320874324,1711657844079,-150.23076923,0.0004817,30]
[320874326,1711657844087,-158.12704685,0.00048209,30]
[320874328,1711657844096,-458.36788494,0.00048329,2]
[320874330,1711657844105,-154.98728367,0.00048389,30]
[320874332,1711657844114,-157.54036188,0.00048449,30]
[320874333,1711657844124,-164.99,0.00048543,2]
[320874334,1711657844133,-245.75,0.000486,7]
[320874335,1711657844142,-216.22,0.000486,7]
[320874336,1711657844151,-6698.05379025,0.00048689,2]
[320874337,1711657844160,-640.32,0.000487,7]
[320874338,1711657844170,-13707.70836485,0.00048739,2]
[320874339,1711657844179,-300.0,0.00048778,2]
[320874340,1711657844189,-300.0,0.00048778,2]
[320874341,1711657844198,-150.23076923,0.00048797,30]
[320874342,1711657844208,-388.6068262,0.00048879,2]
[320874343,1711657844217,-119285.29670695,0.00048879,2]
[320874344,1711657844226,-300.0,0.00048879,2]
[320874345,1711657844236,-300.0,0.00048879,2]
[320874346,1711657844246,-1398685.79470461,0.0004888,2]
[320874347,1711657844255,-154.98728367,0.00048956,30]
[320874348,1711657844265,-12000.0,0.00048982,8]
[320874349,1711657844277,-150418.09191512,0.00049,30]
[320874350,1711657844287,-150.23076923,0.00049061,30]
[320874351,1711657844298,-152.0,0.00049104,3]
[320874352,1711657844307,-150.23076923,0.0004911,30]
[320874353,1711657844317,-150.0,0.00049175,2]
[320874354,1711657844326,-1000.0,0.00049182,2]
[320874355,1711657844336,-154.98728367,0.0004923,30]
[320874356,1711657844346,-225.33931423,0.00049315,2]
[320874357,1711657844356,-500.0,0.00049315,120]
[320874358,1711657844366,-500.0,0.00049315,120]
[320874359,1711657844375,-300.56774659,0.00049315,120]
[320874360,1711657844384,-502.01857313,0.00049315,120]
[320874361,1711657844394,-500.0,0.00049315,120]
[320874362,1711657844403,-503.9228519,0.00049315,120]
[320874363,1711657844413,-500.0,0.00049315,120]
[320874364,1711657844422,-500.0,0.00049315,120]
[320874365,1711657844432,-209.18835168,0.00049315,120]
[320874366,1711657844441,-500.0,0.00049315,2]
[320874367,1711657844451,-503.30607538,0.00049315,120]
[320874368,1711657844460,-500.0,0.00049315,120]
[320874369,1711657844470,-500.0,0.00049315,120]
[320874370,1711657844481,-494.99929018,0.00049315,120]
[320874371,1711657844490,-500.0,0.00049315,120]
[320874372,1711657844499,-500.0,0.00049315,120]
[320874373,1711657844509,-500.0,0.00049315,120]
[320874374,1711657844518,-500.0,0.00049315,120]
[320874375,1711657844528,-500.0,0.00049315,120]
[320874376,1711657844537,-500.0,0.00049315,120]
[320874377,1711657844546,-500.0,0.00049315,120]
[320874378,1711657844556,-504.23234018,0.00049315,120]
[320874379,1711657844565,-1117.72,0.00049315,120]
[320874380,1711657844575,-500.0,0.00049315,120]
[320874381,1711657844586,-500.0,0.00049315,120]
[320874382,1711657844598,-500.0,0.00049315,120]
[320874383,1711657844609,-500.0,0.00049315,120]
[320874384,1711657844619,-500.0,0.00049315,120]
[320874385,1711657844631,-500.0,0.00049315,120]
[320874386,1711657844642,-500.0,0.00049315,120]
[320874387,1711657844651,-500.0,0.00049315,120]
[320874388,1711657844661,-500.0,0.00049315,120]
[320874389,1711657844672,-500.0,0.00049315,120]
[320874390,1711657844682,-500.0,0.00049315,2]
[320874391,1711657844692,-500.0,0.00049315,120]
[320874392,1711657844704,-258.3,0.00049315,120]
[320874393,1711657844715,-500.0,0.00049315,120]
[320874394,1711657844726,-500.0,0.00049315,120]
[320874395,1711657844736,-500.0,0.00049315,120]
[320874396,1711657844747,-505.79318053,0.00049315,120]
[320874397,1711657844759,-500.0,0.00049315,120]
[320874398,1711657844769,-500.0,0.00049315,120]
[320874399,1711657844782,-500.0,0.00049315,120]
[320874400,1711657844791,-500.0,0.00049315,120]
[320874401,1711657844802,-500.0,0.00049315,120]
[320874402,1711657844813,-400.0,0.00049315,120]
[320874403,1711657844822,-500.0,0.00049315,7]
[320874404,1711657844834,-500.0,0.00049315,120]
[320874405,1711657844845,-251.4177627,0.00049315,120]
[320874406,1711657844855,-500.0,0.00049315,120]
[320874407,1711657844867,-500.0,0.00049315,120]
[320874408,1711657844877,-155.0,0.00049315,120]
[320874409,1711657844887,-500.0,0.00049315,120]
[320874410,1711657844897,-607.22,0.00049315,120]
[320874411,1711657844908,-500.0,0.00049315,120]
[320874412,1711657844918,-500.0,0.00049315,120]
[320874413,1711657844927,-500.0,0.00049315,120]
[320874414,1711657844937,-500.0,0.00049315,120]
[320874415,1711657844947,-500.0,0.00049315,120]
[320874416,1711657844956,-500.0,0.00049315,120]
[320874417,1711657844965,-500.0,0.00049315,120]
[320874418,1711657844975,-500.0,0.00049315,120]
[320874419,1711657844987,-500.0,0.00049315,120]
[320874420,1711657844998,-500.0,0.00049315,120]
[320874421,1711657845008,-500.0,0.00049315,120]
[320874422,1711657845018,-500.0,0.00049315,120]
[320874423,1711657845027,-500.0,0.00049315,120]
[320874424,1711657845037,-500.0,0.00049315,120]
[320874425,1711657845046,-507.20311357,0.00049315,120]
[320874426,1711657845057,-500.0,0.00049315,120]
[320874427,1711657845067,-500.0,0.00049315,120]
[320874428,1711657845078,-500.0,0.00049315,120]
[320874429,1711657845088,-500.0,0.00049315,120]
[320874430,1711657845097,-150.0,0.00049315,120]
[320874431,1711657845107,-500.0,0.00049315,120]
[320874432,1711657845117,-517.02877497,0.00049315,120]
[320874433,1711657845126,-500.0,0.00049315,120]
[320874434,1711657845136,-500.0,0.00049315,120]
[320874435,1711657845146,-500.0,0.00049315,120]
[320874436,1711657845155,-500.0,0.00049315,120]
[320874437,1711657845165,-500.0,0.00049315,120]
[320874438,1711657845175,-500.0,0.00049315,120]
[320874439,1711657845185,-558.43672238,0.00049315,120]
[320874440,1711657845195,-500.0,0.00049315,120]
[320874441,1711657845205,-500.0,0.00049315,120]
[320874442,1711657845215,-500.0,0.00049315,120]
[320874443,1711657845224,-500.0,0.00049315,120]
[320874444,1711657845234,-500.0,0.00049315,120]
[320874445,1711657845244,-500.0,0.00049315,120]
[320874446,1711657845253,-500.0,0.00049315,120]
[320874447,1711657845262,-500.0,0.00049315,120]
[320874448,1711657845272,-500.0,0.00049315,120]
[320874449,1711657845281,-500.0,0.00049315,120]
[320874450,1711657845291,-500.0,0.00049315,120]
[320874451,1711657845300,-500.0,0.00049315,120]
[320874452,1711657845309,-500.0,0.00049315,120]
[320874453,1711657845319,-500.0,0.00049315,120]
[320874454,1711657845328,-500.0,0.00049315,2]
[320874455,1711657845337,-500.0,0.00049315,120]
[320874456,1711657845347,-422.98521262,0.00049315,120]
[320874457,1711657845356,-485.84105323,0.00049315,120]
[320874458,1711657845366,-500.0,0.00049315,120]
[320874459,1711657845376,-500.0,0.00049315,120]
[320874460,1711657845385,-500.0,0.00049315,120]
[320874461,1711657845395,-500.0,0.00049315,120]
[320874462,1711657845404,-500.0,0.00049315,120]
[320874463,1711657845413,-368.18840533,0.00049315,120]
[320874464,1711657845423,-500.0,0.00049315,120]
[320874465,1711657845432,-500.0,0.00049315,120]
[320874466,1711657845441,-500.0,0.00049315,120]
[320874467,1711657845451,-500.0,0.00049315,120]
[320874468,1711657845460,-500.0,0.00049315,120]
[320874469,1711657845470,-500.0,0.00049315,120]
[320874470,1711657845479,-533.92,0.00049315,120]
[320874471,1711657845489,-500.0,0.00049315,120]
[320874472,1711657845498,-500.0,0.00049315,120]
[320874473,1711657845507,-500.0,0.00049315,120]
[320874474,1711657845517,-500.0,0.00049315,120]
[320874475,1711657845526,-500.0,0.00049315,120]
[320874476,1711657845537,-500.0,0.00049315,120]
[320874477,1711657845548,-500.0,0.00049315,120]
[320874478,1711657845558,-500.0,0.00049315,120]
[320874479,1711657845568,-500.0,0.00049315,120]
[320874480,1711657845578,-500.0,0.00049315,120]
[320874481,1711657845589,-500.0,0.00049315,120]
[320874482,1711657845600,-500.0,0.00049315,120]
[320874483,1711657845610,-500.0,0.00049315,120]
[320874484,1711657845619,-500.0,0.00049315,120]
[320874485,1711657845629,-570.97,0.00049315,120]
[320874486,1711657845638,-500.0,0.00049315,120]
[320874487,1711657845647,-657.18,0.00049315,120]
[320874488,1711657845657,-500.0,0.00049315,120]
[320874489,1711657845666,-623.32,0.00049315,120]
[320874490,1711657845678,-500.0,0.00049315,120]
[320874491,1711657845688,-500.0,0.00049315,120]
[320874492,1711657845700,-500.0,0.00049315,120]
[320874493,1711657845716,-500.0,0.00049315,120]
[320874494,1711657845726,-500.0,0.00049315,120]
[320874495,1711657845737,-543.65,0.00049315,120]
[320874496,1711657845747,-543.18,0.00049315,120]
[320874497,1711657845756,-500.0,0.00049315,120]
[320874498,1711657845766,-500.0,0.00049315,120]
[320874499,1711657845775,-500.0,0.00049315,120]
[320874500,1711657845785,-390.11068923,0.00049315,120]
[320874501,1711657845795,-500.0,0.00049315,120]
[320874502,1711657845805,-500.0,0.00049315,120]
[320874503,1711657845815,-500.0,0.00049315,120]
[320874504,1711657845825,-500.0,0.00049315,120]
[320874505,1711657845835,-500.0,0.00049315,30]
[320874506,1711657845845,-500.0,0.00049315,120]
[320874507,1711657845854,-500.0,0.00049315,120]
[320874508,1711657845864,-500.0,0.00049315,120]
[320874509,1711657845874,-500.0,0.00049315,120]
[320874510,1711657845884,-500.0,0.00049315,120]
[320874511,1711657845894,-769.72,0.00049315,120]
[320874512,1711657845903,-500.0,0.00049315,120]
[320874513,1711657845913,-848.13,0.00049315,120]
[320874514,1711657845922,-500.0,0.00049315,120]
[320874515,1711657845932,-500.0,0.00049315,120]
[320874516,1711657845943,-500.0,0.00049315,120]
[320874517,1711657845954,-500.0,0.00049315,120]
[320874518,1711657845963,-500.0,0.00049315,120]
[320874519,1711657845972,-607.25,0.00049315,120]
[320874520,1711657845982,-500.0,0.00049315,120]
[320874521,1711657845991,-500.0,0.00049315,120]
[320874522,1711657846002,-500.0,0.00049315,120]
[320874523,1711657846012,-500.0,0.00049315,120]
[320874524,1711657846023,-184.41,0.00049315,120]
[320874525,1711657846033,-624.08,0.00049315,120]
[320874526,1711657846042,-500.0,0.00049315,120]
[320874527,1711657846052,-622.22,0.00049315,120]
[320874528,1711657846064,-500.0,0.00049315,120]
[320874529,1711657846074,-500.0,0.00049315,120]
[320874530,1711657846084,-500.0,0.00049315,120]
[320874531,1711657846094,-523.8,0.00049315,120]
[320874532,1711657846104,-500.0,0.00049315,120]
[320874533,1711657846114,-500.0,0.00049315,120]
[320874534,1711657846124,-500.0,0.00049315,120]
[320874535,1711657846134,-500.0,0.00049315,120]
[320874536,1711657846144,-500.0,0.00049315,120]
[320874537,1711657846155,-526.01,0.00049315,120]
[320874538,1711657846164,-500.0,0.00049315,120]
[320874539,1711657846174,-500.0,0.00049315,120]
[320874540,1711657846183,-732.83,0.00049315,120]
[320874541,1711657846193,-500.0,0.00049315,120]
[320874542,1711657846202,-500.0,0.00049315,120]
[320874544,1711657846212,-500.0,0.00049315,120]
[320874546,1711657846222,-500.0,0.00049315,120]
[320874548,1711657846232,-504.61,0.00049315,120]